[Event "Early-Titled-Tuesday-Blitz-April-02-2024"]
[Site "Chess.com"]
[Date "2024.04.02"]
[Round "9"]
[White "GOGIEFF"]
[Black "Zhigalko_Sergei"]
[Result "0-1"]
[WhiteElo "3005"]
[BlackElo "2896"]
[TimeControl "180+1"]
[EndTime "9:45:49 PDT"]
[Termination "Zhigalko_Sergei won by resignation"]

1. c4 {[%clk 0:03:00.9]} 1... e5 {[%clk 0:03:00.1]} 2. d3 {[%clk 0:03:00.1]}
2... Nf6 {[%clk 0:03:00.5]} 3. Nf3 {[%clk 0:03:00.1]} 3... Nc6 {[%clk
0:03:00.2]} 4. a3 {[%clk 0:03:00.6]} 4... g6 {[%clk 0:03:00]} 5. b4 {[%clk
0:02:58.8]} 5... d6 {[%clk 0:02:56.6]} 6. Bb2 {[%clk 0:02:57.8]} 6... Bg7 {[%clk
0:02:56.8]} 7. e3 {[%clk 0:02:58.1]} 7... O-O {[%clk 0:02:56.7]} 8. Nbd2 {[%clk
0:02:56.7]} 8... a5 {[%clk 0:02:45]} 9. b5 {[%clk 0:02:55.6]} 9... Ne7 {[%clk
0:02:41.1]} 10. Be2 {[%clk 0:02:52]} 10... b6 {[%clk 0:02:32.9]} 11. O-O {[%clk
0:02:50.9]} 11... Bb7 {[%clk 0:02:33]} 12. Qc2 {[%clk 0:02:51.2]} 12... Re8
{[%clk 0:02:29.8]} 13. Rad1 {[%clk 0:02:22.7]} 13... Qd7 {[%clk 0:02:29.4]} 14.
d4 {[%clk 0:02:19.1]} 14... e4 {[%clk 0:01:59.6]} 15. Ng5 {[%clk 0:02:19.1]}
15... d5 {[%clk 0:01:40.6]} 16. c5 {[%clk 0:02:09.1]} 16... Bc8 {[%clk
0:01:28.1]} 17. a4 {[%clk 0:02:00.3]} 17... Qd8 {[%clk 0:01:09.1]} 18. Rc1
{[%clk 0:01:57.4]} 18... h6 {[%clk 0:00:56.5]} 19. cxb6 {[%clk 0:01:44]} 19...
cxb6 {[%clk 0:00:55.1]} 20. Nh3 {[%clk 0:01:33.3]} 20... Bxh3 {[%clk 0:00:54.9]}
21. gxh3 {[%clk 0:01:34.2]} 21... Rc8 {[%clk 0:00:48.3]} 22. Qd1 {[%clk
0:01:11.8]} 22... Rxc1 {[%clk 0:00:46.3]} 23. Bxc1 {[%clk 0:01:11.4]} 23... h5
{[%clk 0:00:35.8]} 24. Ba3 {[%clk 0:01:08.6]} 24... Nf5 {[%clk 0:00:28.2]} 25.
Qc2 {[%clk 0:01:03.2]} 25... Bf8 {[%clk 0:00:20.7]} 26. Bxf8 {[%clk 0:01:00.6]}
26... Rxf8 {[%clk 0:00:18.2]} 27. Rc1 {[%clk 0:01:00.1]} 27... Nh7 {[%clk
0:00:17.8]} 28. Qc7 {[%clk 0:00:55.5]} 28... Qh4 {[%clk 0:00:17.1]} 29. Bf1
{[%clk 0:00:39.4]} 29... Ng5 {[%clk 0:00:17.4]} 30. Qf4 {[%clk 0:00:26.6]} 30...
Qxf4 {[%clk 0:00:14.4]} 31. exf4 {[%clk 0:00:27]} 31... Ne6 {[%clk 0:00:15.3]}
32. Rc6 {[%clk 0:00:27.3]} 32... Rb8 {[%clk 0:00:15.9]} 33. Nb3 {[%clk
0:00:24.7]} 33... Nxf4 {[%clk 0:00:13.3]} 34. h4 {[%clk 0:00:21.2]} 34... Nxh4
{[%clk 0:00:10.3]} 35. Nc5 {[%clk 0:00:19.6]} 35... Nf3+ {[%clk 0:00:08.8]} 36.
Kh1 {[%clk 0:00:19.6]} 36... bxc5 {[%clk 0:00:04.9]} 37. dxc5 {[%clk 0:00:19.9]}
37... Ne5 {[%clk 0:00:02.6]} 38. Rd6 {[%clk 0:00:18]} 38... Nc4 {[%clk
0:00:02.5]} 39. Rd7 {[%clk 0:00:16.3]} 39... Ne6 {[%clk 0:00:02.4]} 40. c6
{[%clk 0:00:16.4]} 40... Nb6 {[%clk 0:00:02.3]} 41. Ra7 {[%clk 0:00:16.4]} 41...
d4 {[%clk 0:00:02.3]} 42. Rxa5 {[%clk 0:00:16.5]} 42... d3 {[%clk 0:00:02.6]}
43. Ra7 {[%clk 0:00:16.4]} 43... Nf4 {[%clk 0:00:02.6]} 44. Rb7 {[%clk
0:00:13.8]} 44... Rc8 {[%clk 0:00:01.6]} 0-1

[Event "Early-Titled-Tuesday-Blitz-April-02-2024"]
[Site "Chess.com"]
[Date "2024.04.02"]
[Round "9"]
[White "SahibSinghKnight"]
[Black "blitzking1729"]
[Result "1-0"]
[WhiteElo "2619"]
[BlackElo "2760"]
[TimeControl "180+1"]
[EndTime "9:45:49 PDT"]
[Termination "SahibSinghKnight won by resignation"]

1. e4 {[%clk 0:03:00.9]} 1... e5 {[%clk 0:02:59]} 2. Nf3 {[%clk 0:03:00.4]} 2...
Nc6 {[%clk 0:02:59.5]} 3. Bb5 {[%clk 0:02:57.7]} 3... a6 {[%clk 0:02:59.6]} 4.
Ba4 {[%clk 0:02:57.7]} 4... Nf6 {[%clk 0:02:59.4]} 5. O-O {[%clk 0:02:58.1]}
5... d6 {[%clk 0:02:59.7]} 6. Re1 {[%clk 0:02:23.6]} 6... Bd7 {[%clk 0:02:59.3]}
7. c3 {[%clk 0:02:23.2]} 7... g6 {[%clk 0:02:59.3]} 8. d4 {[%clk 0:02:23.1]}
8... Bg7 {[%clk 0:02:59.9]} 9. dxe5 {[%clk 0:02:12.4]} 9... Nxe5 {[%clk
0:02:52.1]} 10. Nxe5 {[%clk 0:02:11.9]} 10... dxe5 {[%clk 0:02:51.7]} 11. Bxd7+
{[%clk 0:02:11.7]} 11... Qxd7 {[%clk 0:02:50.5]} 12. Qxd7+ {[%clk 0:02:10.2]}
12... Nxd7 {[%clk 0:02:51.2]} 13. Nd2 {[%clk 0:02:10.4]} 13... Nc5 {[%clk
0:02:49.8]} 14. Nb3 {[%clk 0:02:06.9]} 14... Nd3 {[%clk 0:02:50]} 15. Rd1 {[%clk
0:02:03.6]} 15... O-O-O {[%clk 0:02:50.5]} 16. Kf1 {[%clk 0:01:53.8]} 16... f5
{[%clk 0:02:47.6]} 17. Bg5 {[%clk 0:01:45.7]} 17... Rd7 {[%clk 0:02:46.6]} 18.
exf5 {[%clk 0:01:37]} 18... gxf5 {[%clk 0:02:45.2]} 19. Ke2 {[%clk 0:01:35.7]}
19... Nxb2 {[%clk 0:02:33.2]} 20. Rxd7 {[%clk 0:01:35.1]} 20... Kxd7 {[%clk
0:02:33]} 21. Nc5+ {[%clk 0:01:34.6]} 21... Kc6 {[%clk 0:02:31.9]} 22. Nxb7
{[%clk 0:01:29.3]} 22... Na4 {[%clk 0:01:51.8]} 23. Nd8+ {[%clk 0:01:27.9]}
23... Kd7 {[%clk 0:01:47.7]} 24. Rd1+ {[%clk 0:01:25.6]} 24... Kc8 {[%clk
0:01:48.1]} 25. Rd2 {[%clk 0:01:02.2]} 25... Nxc3+ {[%clk 0:01:45.7]} 26. Ke1
{[%clk 0:01:02.7]} 26... Ne4 {[%clk 0:01:45.6]} 27. Nf7 {[%clk 0:01:00.9]} 27...
Nxd2 {[%clk 0:01:45.4]} 28. Nxh8 {[%clk 0:01:00.3]} 28... Nf3+ {[%clk
0:01:24.9]} 29. gxf3 {[%clk 0:00:58.2]} 29... Bxh8 {[%clk 0:01:25.2]} 30. Ke2
{[%clk 0:00:58.2]} 30... Kd7 {[%clk 0:01:22.8]} 31. Kd3 {[%clk 0:00:57.9]} 31...
Ke6 {[%clk 0:01:21.5]} 32. Kc4 {[%clk 0:00:57.1]} 32... Bf6 {[%clk 0:01:21.9]}
33. Bd2 {[%clk 0:00:56.3]} 33... Be7 {[%clk 0:01:21.9]} 34. Ba5 {[%clk 0:00:56]}
34... Bd6 {[%clk 0:01:21.6]} 35. h3 {[%clk 0:00:55.4]} 35... e4 {[%clk
0:01:19.3]} 36. fxe4 {[%clk 0:00:55.5]} 36... fxe4 {[%clk 0:01:19.8]} 37. Kd4
{[%clk 0:00:56]} 37... Kf5 {[%clk 0:01:20.2]} 38. Bd2 {[%clk 0:00:52.8]} 38...
Bf4 {[%clk 0:01:16.4]} 39. Be3 {[%clk 0:00:43.8]} 39... h5 {[%clk 0:00:56.6]}
40. Kd5 {[%clk 0:00:35.5]} 40... Bd6 {[%clk 0:00:44.9]} 41. a4 {[%clk
0:00:32.5]} 41... a5 {[%clk 0:00:43.4]} 42. Bd2 {[%clk 0:00:30.2]} 42... Bh2
{[%clk 0:00:16.2]} 43. Bxa5 {[%clk 0:00:29.7]} 43... Bg1 {[%clk 0:00:16.7]} 44.
Be1 {[%clk 0:00:30.4]} 44... e3 {[%clk 0:00:15.4]} 45. fxe3 {[%clk 0:00:30.8]}
45... Bxe3 {[%clk 0:00:15.9]} 46. a5 {[%clk 0:00:30.6]} 46... Kf4 {[%clk
0:00:11.7]} 47. Kc6 {[%clk 0:00:25.7]} 47... Ke4 {[%clk 0:00:08.9]} 48. a6
{[%clk 0:00:25.8]} 48... Kd3 {[%clk 0:00:07.6]} 49. Bg3 {[%clk 0:00:22.6]} 49...
Kc4 {[%clk 0:00:06.1]} 50. Bxc7 {[%clk 0:00:22.5]} 1-0

[Event "Early-Titled-Tuesday-Blitz-April-02-2024"]
[Site "Chess.com"]
[Date "2024.04.02"]
[Round "9"]
[White "GnowReopard"]
[Black "IriBu"]
[Result "1-0"]
[WhiteElo "2759"]
[BlackElo "2592"]
[TimeControl "180+1"]
[EndTime "9:45:50 PDT"]
[Termination "GnowReopard won by resignation"]

1. c4 {[%clk 0:03:00.9]} 1... Nf6 {[%clk 0:02:59.2]} 2. Nc3 {[%clk 0:03:00.8]}
2... g6 {[%clk 0:02:59.5]} 3. g3 {[%clk 0:02:59.9]} 3... d6 {[%clk 0:02:59.5]}
4. Bg2 {[%clk 0:02:57.5]} 4... Bg7 {[%clk 0:02:59.8]} 5. Nf3 {[%clk 0:02:57.1]}
5... O-O {[%clk 0:03:00.1]} 6. O-O {[%clk 0:02:56.9]} 6... e5 {[%clk 0:02:59.3]}
7. d3 {[%clk 0:02:57.1]} 7... c6 {[%clk 0:02:56.3]} 8. a3 {[%clk 0:02:55]} 8...
a5 {[%clk 0:02:56.2]} 9. Rb1 {[%clk 0:02:54.6]} 9... Na6 {[%clk 0:02:54.5]} 10.
Bg5 {[%clk 0:02:44.3]} 10... Nc7 {[%clk 0:02:52.1]} 11. Nd2 {[%clk 0:02:41.2]}
11... h6 {[%clk 0:02:50.6]} 12. Bxf6 {[%clk 0:02:40.7]} 12... Bxf6 {[%clk
0:02:51]} 13. b4 {[%clk 0:02:39.3]} 13... axb4 {[%clk 0:02:44.4]} 14. axb4
{[%clk 0:02:39.4]} 14... d5 {[%clk 0:02:43.9]} 15. b5 {[%clk 0:02:33.2]} 15...
e4 {[%clk 0:02:42.5]} 16. Qc2 {[%clk 0:02:22.4]} 16... exd3 {[%clk 0:02:42.2]}
17. exd3 {[%clk 0:02:22.2]} 17... Be6 {[%clk 0:02:36.6]} 18. bxc6 {[%clk
0:02:02]} 18... bxc6 {[%clk 0:02:35.8]} 19. cxd5 {[%clk 0:02:02.3]} 19... cxd5
{[%clk 0:02:25.1]} 20. Ne2 {[%clk 0:01:57.8]} 20... Rc8 {[%clk 0:02:07.9]} 21.
Qa4 {[%clk 0:01:53.8]} 21... Bf5 {[%clk 0:01:53.3]} 22. Qa3 {[%clk 0:01:38.1]}
22... Qe7 {[%clk 0:01:52.3]} 23. Qxe7 {[%clk 0:01:32.5]} 23... Bxe7 {[%clk
0:01:53.2]} 24. Rb3 {[%clk 0:01:32.4]} 24... Ne6 {[%clk 0:01:38.3]} 25. d4
{[%clk 0:01:16.1]} 25... Rc2 {[%clk 0:01:31.6]} 26. Rd1 {[%clk 0:01:15.8]} 26...
Bg4 {[%clk 0:01:27.7]} 27. f3 {[%clk 0:00:47.5]} 27... Bg5 {[%clk 0:01:26.1]}
28. fxg4 {[%clk 0:00:44.4]} 28... Bxd2 {[%clk 0:01:19.8]} 29. Bxd5 {[%clk
0:00:43.8]} 29... Re8 {[%clk 0:01:06.7]} 30. Be4 {[%clk 0:00:33.1]} 30... Ra2
{[%clk 0:00:54.4]} 31. Bb1 {[%clk 0:00:32.8]} 31... Ra1 {[%clk 0:00:37.1]} 32.
Rxd2 {[%clk 0:00:31.3]} 32... Ng5 {[%clk 0:00:37.2]} 33. Kg2 {[%clk 0:00:29.8]}
33... Rc8 {[%clk 0:00:26.7]} 34. d5 {[%clk 0:00:28.4]} 34... Ra7 {[%clk
0:00:19.3]} 35. h4 {[%clk 0:00:27.9]} 35... Nh7 {[%clk 0:00:18.2]} 36. Rf3
{[%clk 0:00:25.3]} 36... Kg7 {[%clk 0:00:17.8]} 37. d6 {[%clk 0:00:23.1]} 37...
Rd8 {[%clk 0:00:17]} 38. Nc3 {[%clk 0:00:22]} 38... Nf6 {[%clk 0:00:15.7]} 39.
g5 {[%clk 0:00:22.3]} 39... hxg5 {[%clk 0:00:14.9]} 40. hxg5 {[%clk 0:00:23.2]}
40... Nh7 {[%clk 0:00:14.9]} 41. Ne4 {[%clk 0:00:23.8]} 41... Rad7 {[%clk
0:00:13.1]} 42. Ba2 {[%clk 0:00:23.3]} 42... Re8 {[%clk 0:00:10.9]} 43. Bd5
{[%clk 0:00:22.5]} 43... Re5 {[%clk 0:00:09.7]} 44. Bc6 {[%clk 0:00:22.4]} 44...
Rd8 {[%clk 0:00:08.5]} 45. Rdf2 {[%clk 0:00:22.6]} 45... Rf8 {[%clk 0:00:04.4]}
46. d7 {[%clk 0:00:21.8]} 46... Nxg5 {[%clk 0:00:04.5]} 47. Nxg5 {[%clk
0:00:22.5]} 47... Rxg5 {[%clk 0:00:05.3]} 48. Rxf7+ {[%clk 0:00:23.2]} 48...
Rxf7 {[%clk 0:00:05.6]} 49. Rxf7+ {[%clk 0:00:24]} 49... Kxf7 {[%clk 0:00:05]}
50. d8=Q {[%clk 0:00:24.9]} 1-0

[Event "Early-Titled-Tuesday-Blitz-April-02-2024"]
[Site "Chess.com"]
[Date "2024.04.02"]
[Round "9"]
[White "kereswasbest"]
[Black "Kushch_Nikolai"]
[Result "0-1"]
[WhiteElo "2258"]
[BlackElo "2420"]
[TimeControl "180+1"]
[EndTime "9:45:53 PDT"]
[Termination "Kushch_Nikolai won on time"]

1. e4 {[%clk 0:03:00.9]} 1... c5 {[%clk 0:02:59.1]} 2. Nf3 {[%clk 0:03:00.1]}
2... e6 {[%clk 0:02:58.6]} 3. d4 {[%clk 0:02:59.3]} 3... cxd4 {[%clk 0:02:58.6]}
4. Nxd4 {[%clk 0:02:59.5]} 4... a6 {[%clk 0:02:58.6]} 5. g3 {[%clk 0:02:59.8]}
5... d6 {[%clk 0:02:55.9]} 6. Bg2 {[%clk 0:02:57.1]} 6... Bd7 {[%clk 0:02:56.1]}
7. O-O {[%clk 0:02:56.5]} 7... Nc6 {[%clk 0:02:56.4]} 8. b3 {[%clk 0:02:54.1]}
8... Nf6 {[%clk 0:02:54.3]} 9. Bb2 {[%clk 0:02:53.9]} 9... Qc7 {[%clk
0:02:54.1]} 10. c4 {[%clk 0:02:49.5]} 10... Be7 {[%clk 0:02:53.8]} 11. Nc3
{[%clk 0:02:49.9]} 11... Rc8 {[%clk 0:02:50.9]} 12. Rc1 {[%clk 0:02:49.8]} 12...
Ne5 {[%clk 0:02:51.1]} 13. h3 {[%clk 0:02:47.6]} 13... h5 {[%clk 0:02:49.8]} 14.
f4 {[%clk 0:02:46.2]} 14... Ng6 {[%clk 0:02:49.8]} 15. Kh1 {[%clk 0:02:39.4]}
15... Qb8 {[%clk 0:02:49.9]} 16. Qd2 {[%clk 0:02:34.5]} 16... b5 {[%clk
0:02:49.6]} 17. cxb5 {[%clk 0:02:29.8]} 17... axb5 {[%clk 0:02:49.9]} 18. f5
{[%clk 0:01:56.2]} 18... Ne5 {[%clk 0:02:44.2]} 19. Ndxb5 {[%clk 0:01:50.4]}
19... Bxb5 {[%clk 0:02:36.2]} 20. Nxb5 {[%clk 0:01:49.6]} 20... Rxc1 {[%clk
0:02:35.4]} 21. Rxc1 {[%clk 0:01:47.1]} 21... Qxb5 {[%clk 0:02:34.7]} 22. Rc8+
{[%clk 0:01:46]} 22... Bd8 {[%clk 0:02:34.4]} 23. Qxd6 {[%clk 0:01:44.3]} 23...
Ned7 {[%clk 0:02:25.5]} 24. fxe6 {[%clk 0:01:30.9]} 24... Qb7 {[%clk 0:01:57.9]}
25. exd7+ {[%clk 0:01:22.2]} 25... Nxd7 {[%clk 0:01:46.2]} 26. Rb8 {[%clk
0:01:08.7]} 26... Qxb8 {[%clk 0:01:43.6]} 27. Qc6 {[%clk 0:00:58.7]} 27... Rh6
{[%clk 0:01:40.8]} 28. Qa4 {[%clk 0:00:55]} 28... Qxg3 {[%clk 0:01:31.9]} 29. e5
{[%clk 0:00:51.6]} 29... Rg6 {[%clk 0:01:26.7]} 30. Qe4 {[%clk 0:00:46]} 30...
Kf8 {[%clk 0:01:07.1]} 31. Qa8 {[%clk 0:00:39.6]} 31... Qxg2+ {[%clk 0:01:02.1]}
32. Qxg2 {[%clk 0:00:38.5]} 32... Rxg2 {[%clk 0:01:00.2]} 33. Kxg2 {[%clk
0:00:39.4]} 33... Bc7 {[%clk 0:00:59.3]} 34. e6 {[%clk 0:00:34.9]} 34... fxe6
{[%clk 0:00:58.8]} 35. Kf3 {[%clk 0:00:35.3]} 35... g5 {[%clk 0:00:55.7]} 36.
Ke4 {[%clk 0:00:34]} 36... Ke7 {[%clk 0:00:53.8]} 37. b4 {[%clk 0:00:33]} 37...
Bd6 {[%clk 0:00:50]} 38. Bc3 {[%clk 0:00:29.5]} 38... Nb6 {[%clk 0:00:48.6]} 39.
Bd4 {[%clk 0:00:26.2]} 39... Na4 {[%clk 0:00:44.8]} 40. a3 {[%clk 0:00:26.6]}
40... g4 {[%clk 0:00:41.9]} 41. hxg4 {[%clk 0:00:26.2]} 41... hxg4 {[%clk
0:00:42.1]} 42. Ke3 {[%clk 0:00:23.7]} 42... g3 {[%clk 0:00:40.7]} 43. Kf3
{[%clk 0:00:23.5]} 43... Kd7 {[%clk 0:00:39.4]} 44. Kg2 {[%clk 0:00:17]} 44...
Kc6 {[%clk 0:00:39.4]} 45. Kf3 {[%clk 0:00:16.5]} 45... Kd5 {[%clk 0:00:39.6]}
46. Ba7 {[%clk 0:00:13.9]} 46... Kc4 {[%clk 0:00:38.5]} 47. Be3 {[%clk
0:00:11.8]} 47... Kb3 {[%clk 0:00:38.3]} 48. b5 {[%clk 0:00:12.2]} 48... Kxa3
{[%clk 0:00:35.2]} 49. b6 {[%clk 0:00:12.2]} 49... Kb4 {[%clk 0:00:34.9]} 50. b7
{[%clk 0:00:12.6]} 50... Bb8 {[%clk 0:00:34.5]} 51. Bf4 {[%clk 0:00:10.1]} 51...
e5 {[%clk 0:00:29.4]} 52. Bxg3 {[%clk 0:00:10.3]} 52... Kb5 {[%clk 0:00:27.8]}
53. Ke4 {[%clk 0:00:10.1]} 53... Nc5+ {[%clk 0:00:21.8]} 54. Kd5 {[%clk
0:00:10.1]} 54... Nd7 {[%clk 0:00:16.6]} 55. Ke6 {[%clk 0:00:08.9]} 55... Kc6
{[%clk 0:00:16.2]} 56. Ke7 {[%clk 0:00:04.3]} 56... e4 {[%clk 0:00:15.6]} 0-1

[Event "Early-Titled-Tuesday-Blitz-April-02-2024"]
[Site "Chess.com"]
[Date "2024.04.02"]
[Round "9"]
[White "JoshuaGK27"]
[Black "smotherhubbard"]
[Result "1-0"]
[WhiteElo "2529"]
[BlackElo "2362"]
[TimeControl "180+1"]
[EndTime "9:45:55 PDT"]
[Termination "JoshuaGK27 won by resignation"]

1. e4 {[%clk 0:02:54.1]} 1... e6 {[%clk 0:02:59.9]} 2. d4 {[%clk 0:02:53.7]}
2... d5 {[%clk 0:03:00.5]} 3. e5 {[%clk 0:02:54.2]} 3... c5 {[%clk 0:03:00.2]}
4. c3 {[%clk 0:02:54.4]} 4... Nc6 {[%clk 0:03:00.6]} 5. Nf3 {[%clk 0:02:54.5]}
5... Bd7 {[%clk 0:03:00.9]} 6. Be2 {[%clk 0:02:54.4]} 6... f6 {[%clk 0:03:00.5]}
7. O-O {[%clk 0:02:52.7]} 7... fxe5 {[%clk 0:02:58.3]} 8. dxe5 {[%clk
0:02:46.7]} 8... Nge7 {[%clk 0:02:58.5]} 9. c4 {[%clk 0:02:28.2]} 9... d4 {[%clk
0:02:54.4]} 10. Re1 {[%clk 0:02:26.5]} 10... Ng6 {[%clk 0:02:53.3]} 11. Bf1
{[%clk 0:02:26.9]} 11... Qc7 {[%clk 0:02:49]} 12. a3 {[%clk 0:02:17.6]} 12...
Be7 {[%clk 0:02:46.6]} 13. b4 {[%clk 0:02:06.2]} 13... b6 {[%clk 0:02:39.5]} 14.
Bd3 {[%clk 0:01:39.5]} 14... O-O {[%clk 0:02:17.1]} 15. Bxg6 {[%clk 0:01:29.8]}
15... hxg6 {[%clk 0:02:18]} 16. Qd3 {[%clk 0:01:29.7]} 16... Rf5 {[%clk
0:02:16.1]} 17. Nbd2 {[%clk 0:01:12.2]} 17... Raf8 {[%clk 0:02:12.2]} 18. Bb2
{[%clk 0:01:06.6]} 18... g5 {[%clk 0:02:11.1]} 19. b5 {[%clk 0:01:02.8]} 19...
g4 {[%clk 0:02:00.5]} 20. bxc6 {[%clk 0:00:57.8]} 20... Bxc6 {[%clk 0:02:01]}
21. Nxd4 {[%clk 0:00:48.3]} 21... cxd4 {[%clk 0:01:46.9]} 22. Bxd4 {[%clk
0:00:49.2]} 22... Qb7 {[%clk 0:01:40.4]} 23. Qf1 {[%clk 0:00:33.7]} 23... Rd8
{[%clk 0:01:27.3]} 24. Be3 {[%clk 0:00:12.2]} 24... Rxe5 {[%clk 0:01:13.3]} 25.
Bf4 {[%clk 0:00:12.1]} 25... Rf5 {[%clk 0:01:09.1]} 26. Be3 {[%clk 0:00:12.3]}
26... Bf6 {[%clk 0:01:02.8]} 27. Rad1 {[%clk 0:00:11.4]} 27... Bc3 {[%clk
0:00:56.2]} 28. Re2 {[%clk 0:00:07.7]} 28... Ba4 {[%clk 0:00:52.1]} 29. Rde1
{[%clk 0:00:07]} 29... Bc2 {[%clk 0:00:48.5]} 30. Rc1 {[%clk 0:00:07]} 30...
Bxd2 {[%clk 0:00:36.4]} 31. Rxd2 {[%clk 0:00:07.9]} 31... Rxd2 {[%clk
0:00:34.2]} 32. Bxd2 {[%clk 0:00:08.8]} 32... Be4 {[%clk 0:00:33]} 33. Be3
{[%clk 0:00:09.4]} 33... Rf7 {[%clk 0:00:19.2]} 34. c5 {[%clk 0:00:05.1]} 34...
b5 {[%clk 0:00:15.6]} 35. Bd4 {[%clk 0:00:03.5]} 35... Rd7 {[%clk 0:00:15]} 36.
Be3 {[%clk 0:00:04]} 36... Rd3 {[%clk 0:00:13.9]} 37. Qe2 {[%clk 0:00:04]} 37...
Bf5 {[%clk 0:00:09.6]} 38. g3 {[%clk 0:00:02.4]} 38... Rxa3 {[%clk 0:00:08.5]}
39. c6 {[%clk 0:00:02.4]} 39... Qc7 {[%clk 0:00:07.8]} 40. Qxb5 {[%clk
0:00:03.1]} 40... Be4 {[%clk 0:00:05.2]} 41. Qb7 {[%clk 0:00:03.3]} 41... Qxb7
{[%clk 0:00:04.3]} 42. cxb7 {[%clk 0:00:04.2]} 42... Bxb7 {[%clk 0:00:04.6]} 43.
Rb1 {[%clk 0:00:05.1]} 43... Be4 {[%clk 0:00:04.4]} 44. Rc1 {[%clk 0:00:05.2]}
44... Ra2 {[%clk 0:00:04.6]} 45. Bc5 {[%clk 0:00:06]} 45... a5 {[%clk
0:00:04.9]} 46. Bd4 {[%clk 0:00:06.5]} 46... a4 {[%clk 0:00:05.4]} 47. Ra1
{[%clk 0:00:07.1]} 47... Rxa1+ {[%clk 0:00:04.4]} 48. Bxa1 {[%clk 0:00:08]}
48... Kf7 {[%clk 0:00:04.7]} 49. Kf1 {[%clk 0:00:08.7]} 49... Ke7 {[%clk
0:00:05.6]} 50. Ke2 {[%clk 0:00:09.3]} 50... Kd6 {[%clk 0:00:06.4]} 51. Ke3
{[%clk 0:00:10.1]} 51... Kc5 {[%clk 0:00:07.3]} 52. Kxe4 {[%clk 0:00:10.7]}
52... Kc4 {[%clk 0:00:07.7]} 53. Ke5 {[%clk 0:00:10.9]} 53... Kb3 {[%clk
0:00:08.6]} 54. Kxe6 {[%clk 0:00:11.2]} 54... Ka2 {[%clk 0:00:08.9]} 55. Bxg7
{[%clk 0:00:10.5]} 1-0

[Event "Early-Titled-Tuesday-Blitz-April-02-2024"]
[Site "Chess.com"]
[Date "2024.04.02"]
[Round "9"]
[White "newauto"]
[Black "shirovin"]
[Result "0-1"]
[WhiteElo "2176"]
[BlackElo "2048"]
[TimeControl "180+1"]
[EndTime "9:45:57 PDT"]
[Termination "shirovin won on time"]

1. d4 {[%clk 0:03:00.9]} 1... Nf6 {[%clk 0:02:57.1]} 2. Nf3 {[%clk 0:03:01.4]}
2... d5 {[%clk 0:02:54.8]} 3. Bg5 {[%clk 0:03:02]} 3... c5 {[%clk 0:02:44.8]} 4.
Nbd2 {[%clk 0:03:01.4]} 4... h6 {[%clk 0:02:39.6]} 5. Bh4 {[%clk 0:02:59.7]}
5... Nc6 {[%clk 0:02:38.9]} 6. c3 {[%clk 0:02:59.6]} 6... e6 {[%clk 0:02:36.7]}
7. e3 {[%clk 0:02:59.5]} 7... Be7 {[%clk 0:02:34.8]} 8. Bd3 {[%clk 0:02:58]}
8... O-O {[%clk 0:02:31.9]} 9. O-O {[%clk 0:02:56.9]} 9... b6 {[%clk 0:02:29.7]}
10. Ne5 {[%clk 0:02:55.9]} 10... Nxe5 {[%clk 0:02:27.9]} 11. dxe5 {[%clk
0:02:56.8]} 11... Nd7 {[%clk 0:02:26.8]} 12. Bg3 {[%clk 0:02:57.1]} 12... Bb7
{[%clk 0:02:18.2]} 13. Qh5 {[%clk 0:02:52]} 13... Qe8 {[%clk 0:02:03.6]} 14. Nf3
{[%clk 0:02:43.7]} 14... f5 {[%clk 0:01:59.6]} 15. Qxe8 {[%clk 0:02:38.2]} 15...
Rfxe8 {[%clk 0:01:58.7]} 16. a4 {[%clk 0:02:12.5]} 16... Bc6 {[%clk 0:01:53.3]}
17. Bb5 {[%clk 0:02:09.5]} 17... Rec8 {[%clk 0:01:49.4]} 18. Ba6 {[%clk
0:02:07.1]} 18... Rd8 {[%clk 0:01:47]} 19. Rfe1 {[%clk 0:01:49.7]} 19... Nb8
{[%clk 0:01:26]} 20. Bb5 {[%clk 0:01:47.8]} 20... a6 {[%clk 0:01:24.6]} 21. Bf1
{[%clk 0:01:41.4]} 21... Nd7 {[%clk 0:01:20.2]} 22. Nd2 {[%clk 0:01:40.2]} 22...
b5 {[%clk 0:01:17.9]} 23. axb5 {[%clk 0:01:38.7]} 23... axb5 {[%clk 0:01:17.9]}
24. f4 {[%clk 0:01:38.3]} 24... Rxa1 {[%clk 0:00:57.1]} 25. Rxa1 {[%clk
0:01:36.8]} 25... Rb8 {[%clk 0:00:55]} 26. Ra7 {[%clk 0:01:34.5]} 26... Rb7
{[%clk 0:00:54.4]} 27. Rxb7 {[%clk 0:01:30.6]} 27... Bxb7 {[%clk 0:00:53.9]} 28.
Bxb5 {[%clk 0:01:31.2]} 28... Nb6 {[%clk 0:00:53.4]} 29. Nb3 {[%clk 0:01:21.2]}
29... c4 {[%clk 0:00:35.8]} 30. Na5 {[%clk 0:01:17.5]} 30... Bc8 {[%clk
0:00:35.1]} 31. Nc6 {[%clk 0:01:15.7]} 31... Kf7 {[%clk 0:00:30.3]} 32. Nxe7
{[%clk 0:01:14.5]} 32... Kxe7 {[%clk 0:00:28.7]} 33. Bh4+ {[%clk 0:01:12.5]}
33... Kf7 {[%clk 0:00:24.9]} 34. Kf2 {[%clk 0:01:09.6]} 34... Na8 {[%clk
0:00:21.9]} 35. Ke2 {[%clk 0:01:01.3]} 35... Nc7 {[%clk 0:00:21.6]} 36. Ba4
{[%clk 0:00:58.3]} 36... Na6 {[%clk 0:00:20.3]} 37. Bd8 {[%clk 0:00:44.2]} 37...
Nc5 {[%clk 0:00:19.5]} 38. Bc2 {[%clk 0:00:43.8]} 38... Ba6 {[%clk 0:00:18.3]}
39. Bb6 {[%clk 0:00:41.9]} 39... Ne4 {[%clk 0:00:17.4]} 40. Ba4 {[%clk
0:00:32.3]} 40... g5 {[%clk 0:00:15.9]} 41. g3 {[%clk 0:00:26.2]} 41... g4
{[%clk 0:00:14.8]} 42. Bd8 {[%clk 0:00:23]} 42... Bb7 {[%clk 0:00:11.9]} 43. Bd7
{[%clk 0:00:22.2]} 43... Ba8 {[%clk 0:00:11.7]} 44. Kf1 {[%clk 0:00:19.7]} 44...
Bb7 {[%clk 0:00:11.7]} 45. Kg2 {[%clk 0:00:19.4]} 45... Ba8 {[%clk 0:00:11.3]}
46. h3 {[%clk 0:00:19.6]} 46... d4 {[%clk 0:00:10.1]} 47. Kf1 {[%clk 0:00:03.4]}
47... gxh3 {[%clk 0:00:09.6]} 48. exd4 {[%clk 0:00:02.2]} 48... Nxg3+ {[%clk
0:00:08.7]} 49. Kg1 {[%clk 0:00:01.8]} 49... Ne2+ {[%clk 0:00:07.4]} 50. Kh2
{[%clk 0:00:02.4]} 50... Nxf4 {[%clk 0:00:06.8]} 51. Kg3 {[%clk 0:00:01.6]}
51... h5 {[%clk 0:00:05.4]} 0-1